[Event "*** Titled Tuesday Blitz"]
[Site "Chess.com"]
[Date "2020.04.07"]
[Round "3"]
[White "AnnaChessLook"]
[Black "LlambiPasku"]
[Result "1-0"]
[WhiteElo "2229"]
[BlackElo "2390"]
[TimeControl "180+1"]
[EndTime "13:28:08 PDT"]
[Termination "AnnaChessLook won by checkmate"]

1. e4 {[%clk 0:03:00.9]} 1... e5 {[%clk 0:02:59.6]} 2. Nf3 {[%clk 0:02:59.4]}
2... Nc6 {[%clk 0:02:59.9]} 3. d4 {[%clk 0:02:58.5]} 3... a6 {[%clk 0:03:00.8]}
4. d5 {[%clk 0:02:56.8]} 4... Nd4 {[%clk 0:02:59.1]} 5. Nxd4 {[%clk 0:02:56.4]}
5... exd4 {[%clk 0:02:59.2]} 6. Qxd4 {[%clk 0:02:57]} 6... d6 {[%clk 0:02:59.2]}
7. Be2 {[%clk 0:02:55.3]} 7... Nf6 {[%clk 0:02:58.5]} 8. O-O {[%clk 0:02:55.3]}
8... g6 {[%clk 0:02:58.8]} 9. Bg5 {[%clk 0:02:43]} 9... Bg7 {[%clk 0:02:59.7]}
10. e5 {[%clk 0:02:37.4]} 10... dxe5 {[%clk 0:02:54]} 11. Qxe5+ {[%clk
0:02:37.6]} 11... Kf8 {[%clk 0:02:54.3]} 12. Nc3 {[%clk 0:02:35.4]} 12... h6
{[%clk 0:02:53.8]} 13. Bh4 {[%clk 0:02:30.7]} 13... g5 {[%clk 0:02:53.5]} 14.
Bg3 {[%clk 0:02:30.7]} 14... Ne8 {[%clk 0:02:53.2]} 15. Qe3 {[%clk 0:01:55.2]}
15... Nd6 {[%clk 0:02:53.5]} 16. Rad1 {[%clk 0:01:27.7]} 16... h5 {[%clk
0:02:53.1]} 17. h3 {[%clk 0:01:22.8]} 17... Nf5 {[%clk 0:02:17.3]} 18. Qc5+
{[%clk 0:01:21.9]} 18... Nd6 {[%clk 0:02:14.4]} 19. Ne4 {[%clk 0:01:18.8]} 19...
b6 {[%clk 0:02:08.4]} 20. Qa3 {[%clk 0:01:18.1]} 20... Kg8 {[%clk 0:02:05.4]}
21. Nxd6 {[%clk 0:01:17.2]} 21... cxd6 {[%clk 0:02:06.3]} 22. Bxd6 {[%clk
0:01:15.6]} 22... g4 {[%clk 0:02:05.4]} 23. Be7 {[%clk 0:01:02.8]} 23... Qd7
{[%clk 0:02:05.2]} 24. h4 {[%clk 0:01:01.7]} 24... Be5 {[%clk 0:02:02.8]} 25. d6
{[%clk 0:00:56.7]} 25... Bb7 {[%clk 0:02:01.2]} 26. Qe3 {[%clk 0:00:49.8]} 26...
Rh7 {[%clk 0:01:50.5]} 27. Bd3 {[%clk 0:00:43.7]} 27... Rg7 {[%clk 0:01:49.8]}
28. Qxe5 {[%clk 0:00:37.9]} 28... g3 {[%clk 0:01:48.8]} 29. f3 {[%clk
0:00:34.8]} 29... Rc8 {[%clk 0:01:46.2]} 30. Rfe1 {[%clk 0:00:31.5]} 30... Rc5
{[%clk 0:01:45.2]} 31. Qe3 {[%clk 0:00:30.5]} 31... a5 {[%clk 0:01:41]} 32. Bf6
{[%clk 0:00:29]} 32... Rg6 {[%clk 0:01:38.5]} 33. Qe8+ {[%clk 0:00:27.8]} 33...
Qxe8 {[%clk 0:01:37.6]} 34. Rxe8+ {[%clk 0:00:28.7]} 34... Kh7 {[%clk
0:01:38.5]} 35. Rh8# {[%clk 0:00:29]} 1-0

[Event "*** Titled Tuesday Blitz"]
[Site "Chess.com"]
[Date "2020.04.07"]
[Round "3"]
[White "LittlePeasant"]
[Black "Orest_Vovk"]
[Result "1-0"]
[WhiteElo "2787"]
[BlackElo "2470"]
[TimeControl "180+1"]
[EndTime "13:28:10 PDT"]
[Termination "LittlePeasant won by checkmate"]

1. d4 {[%clk 0:03:00.9]} 1... h6 {[%clk 0:02:54.5]} 2. c4 {[%clk 0:03:00.8]}
2... g5 {[%clk 0:02:54.7]} 3. Nc3 {[%clk 0:03:01.5]} 3... Bg7 {[%clk 0:02:55.2]}
4. h4 {[%clk 0:03:01.6]} 4... c5 {[%clk 0:02:55.1]} 5. dxc5 {[%clk 0:02:57]}
5... Bxc3+ {[%clk 0:02:54.4]} 6. bxc3 {[%clk 0:02:57]} 6... Qa5 {[%clk 0:02:55]}
7. hxg5 {[%clk 0:02:55.7]} 7... hxg5 {[%clk 0:02:54.8]} 8. Rxh8 {[%clk
0:02:51.6]} 8... Qxc3+ {[%clk 0:02:54.8]} 9. Qd2 {[%clk 0:02:51.9]} 9... Qxh8
{[%clk 0:02:55.7]} 10. Bb2 {[%clk 0:02:51.9]} 10... Qh5 {[%clk 0:02:28.6]} 11.
O-O-O {[%clk 0:02:38.7]} 11... Na6 {[%clk 0:02:15.4]} 12. Qe3 {[%clk 0:02:27.5]}
12... b6 {[%clk 0:01:35]} 13. Qe4 {[%clk 0:02:24.5]} 13... Rb8 {[%clk
0:01:26.4]} 14. c6 {[%clk 0:02:24.9]} 14... Nc5 {[%clk 0:01:18.8]} 15. Qe5
{[%clk 0:01:50.4]} 15... d6 {[%clk 0:00:49.3]} 16. Rxd6 {[%clk 0:01:45]} 16...
Qh1 {[%clk 0:00:41]} 17. Rd8+ {[%clk 0:01:37.4]} 17... Kxd8 {[%clk 0:00:36.4]}
18. c7+ {[%clk 0:01:38.3]} 18... Kd7 {[%clk 0:00:28.5]} 19. cxb8=Q {[%clk
0:01:39.2]} 19... f6 {[%clk 0:00:15.4]} 20. Qbc7+ {[%clk 0:01:27]} 20... Ke8
{[%clk 0:00:14.7]} 21. Qxc8+ {[%clk 0:01:24.9]} 21... Kf7 {[%clk 0:00:15.2]} 22.
Qd5+ {[%clk 0:01:17.6]} 22... e6 {[%clk 0:00:15.5]} 23. Qdd8 {[%clk 0:01:17.6]}
23... Qxg1 {[%clk 0:00:09.4]} 24. Qxg8+ {[%clk 0:01:17.5]} 24... Ke7 {[%clk
0:00:09.8]} 25. Qcd8# {[%clk 0:01:18.4]} 1-0

[Event "*** Titled Tuesday Blitz"]
[Site "Chess.com"]
[Date "2020.04.07"]
[Round "3"]
[White "JustWatch000"]
[Black "Alexander_Moskalenko"]
[Result "1-0"]
[WhiteElo "2593"]
[BlackElo "2940"]
[TimeControl "180+1"]
[EndTime "13:28:12 PDT"]
[Termination "JustWatch000 won by checkmate"]

1. e4 {[%clk 0:03:00.9]} 1... c6 {[%clk 0:03:00.9]} 2. d4 {[%clk 0:03:00.5]}
2... d5 {[%clk 0:03:01.8]} 3. exd5 {[%clk 0:03:00.1]} 3... cxd5 {[%clk
0:03:02.7]} 4. c4 {[%clk 0:03:00.6]} 4... Nf6 {[%clk 0:03:02.3]} 5. Nc3 {[%clk
0:03:01]} 5... e6 {[%clk 0:02:59.7]} 6. Nf3 {[%clk 0:03:00.4]} 6... Be7 {[%clk
0:02:56.4]} 7. cxd5 {[%clk 0:02:53.3]} 7... Nxd5 {[%clk 0:02:55.5]} 8. Bd3
{[%clk 0:02:52.8]} 8... Nc6 {[%clk 0:02:54.3]} 9. O-O {[%clk 0:02:53.2]} 9... b6
{[%clk 0:02:54.7]} 10. Bb5 {[%clk 0:02:51.4]} 10... Bd7 {[%clk 0:02:50.6]} 11.
Nxd5 {[%clk 0:02:49.4]} 11... exd5 {[%clk 0:02:50.2]} 12. Qb3 {[%clk 0:02:47.2]}
12... a6 {[%clk 0:02:41.9]} 13. Bxc6 {[%clk 0:02:34.4]} 13... Bxc6 {[%clk
0:02:42.8]} 14. Re1 {[%clk 0:02:29.9]} 14... O-O {[%clk 0:02:41.8]} 15. Be3
{[%clk 0:02:25.9]} 15... f6 {[%clk 0:02:35.5]} 16. Rac1 {[%clk 0:02:24.6]} 16...
Bb7 {[%clk 0:02:33.2]} 17. Rc2 {[%clk 0:02:17]} 17... Bd6 {[%clk 0:02:31.9]} 18.
Rec1 {[%clk 0:02:11.8]} 18... Re8 {[%clk 0:02:31.3]} 19. a4 {[%clk 0:02:09.8]}
19... Re7 {[%clk 0:02:09.4]} 20. Bd2 {[%clk 0:02:00.4]} 20... a5 {[%clk
0:02:05.1]} 21. Re1 {[%clk 0:01:44]} 21... Rd7 {[%clk 0:02:01.1]} 22. Qe3 {[%clk
0:01:40.8]} 22... Re7 {[%clk 0:01:54.3]} 23. Qb3 {[%clk 0:01:39.2]} 23... Rxe1+
{[%clk 0:01:52.4]} 24. Nxe1 {[%clk 0:01:39.5]} 24... Bf8 {[%clk 0:01:52.4]} 25.
Nd3 {[%clk 0:01:37.6]} 25... Ba6 {[%clk 0:01:52.6]} 26. Nf4 {[%clk 0:01:29.8]}
26... Bc4 {[%clk 0:01:52.7]} 27. Qh3 {[%clk 0:01:29]} 27... g5 {[%clk
0:01:46.5]} 28. Qe6+ {[%clk 0:01:27.3]} 28... Kg7 {[%clk 0:01:42.8]} 29. Nh5+
{[%clk 0:01:24.1]} 29... Kg6 {[%clk 0:01:43.1]} 30. Bxg5 {[%clk 0:01:24.5]}
30... Kxg5 {[%clk 0:01:41.1]} 31. Rc3 {[%clk 0:01:23.9]} 31... Bd6 {[%clk
0:01:36.5]} 32. f4+ {[%clk 0:01:19.8]} 32... Kxh5 {[%clk 0:00:59.8]} 33. Rg3
{[%clk 0:01:17.9]} 33... Be2 {[%clk 0:00:43]} 34. Qh3# {[%clk 0:01:17.2]} 1-0

[Event "*** Titled Tuesday Blitz"]
[Site "Chess.com"]
[Date "2020.04.07"]
[Round "3"]
[White "willc-h99"]
[Black "axvesik"]
[Result "1-0"]
[WhiteElo "2244"]
[BlackElo "2388"]
[TimeControl "180+1"]
[EndTime "13:28:12 PDT"]
[Termination "willc-h99 won by resignation"]

1. c4 {[%clk 0:03:00.9]} 1... c5 {[%clk 0:02:58.5]} 2. g3 {[%clk 0:03:01.2]}
2... Nc6 {[%clk 0:02:58.1]} 3. Bg2 {[%clk 0:03:01.7]} 3... g6 {[%clk 0:02:59]}
4. Nc3 {[%clk 0:03:01.5]} 4... Bg7 {[%clk 0:02:59.9]} 5. Nf3 {[%clk 0:03:01.6]}
5... e5 {[%clk 0:02:59]} 6. O-O {[%clk 0:03:00.9]} 6... Nge7 {[%clk 0:02:59.7]}
7. a3 {[%clk 0:02:58.8]} 7... O-O {[%clk 0:02:58.3]} 8. Rb1 {[%clk 0:02:52.1]}
8... d5 {[%clk 0:02:51.6]} 9. cxd5 {[%clk 0:02:51.3]} 9... Nxd5 {[%clk
0:02:51.7]} 10. Nxd5 {[%clk 0:02:51.7]} 10... Qxd5 {[%clk 0:02:51.3]} 11. d3
{[%clk 0:02:52.6]} 11... Qd6 {[%clk 0:02:39.4]} 12. Bd2 {[%clk 0:02:30.9]} 12...
Bd7 {[%clk 0:02:28.8]} 13. b4 {[%clk 0:02:29.6]} 13... cxb4 {[%clk 0:02:22.2]}
14. axb4 {[%clk 0:02:30.5]} 14... Rac8 {[%clk 0:02:18]} 15. b5 {[%clk
0:02:29.2]} 15... Ne7 {[%clk 0:02:17.4]} 16. Bb4 {[%clk 0:02:27]} 16... Qf6
{[%clk 0:02:11.5]} 17. Qb3 {[%clk 0:02:23]} 17... Rfe8 {[%clk 0:02:03.6]} 18.
Nd2 {[%clk 0:02:18.5]} 18... Rc7 {[%clk 0:01:49.7]} 19. Ne4 {[%clk 0:02:16.7]}
19... Qe6 {[%clk 0:01:36.2]} 20. Qa3 {[%clk 0:01:58.7]} 20... Nd5 {[%clk
0:01:31.2]} 21. Nc5 {[%clk 0:01:58.2]} 21... Qd6 {[%clk 0:01:20.8]} 22. Na6
{[%clk 0:01:41.7]} 22... Nxb4 {[%clk 0:01:10.7]} 23. Nxc7 {[%clk 0:01:41.5]}
23... Qxc7 {[%clk 0:01:10.8]} 24. Qxb4 {[%clk 0:01:39.9]} 24... Bf8 {[%clk
0:01:02.8]} 25. Qb3 {[%clk 0:01:34.7]} 25... Bc5 {[%clk 0:01:00.5]} 26. e3
{[%clk 0:01:24.4]} 26... Be6 {[%clk 0:00:57.3]} 27. Bd5 {[%clk 0:01:23.1]} 27...
Bxd5 {[%clk 0:00:52.8]} 28. Qxd5 {[%clk 0:01:24]} 28... Rd8 {[%clk 0:00:53.1]}
29. Qc4 {[%clk 0:01:22.5]} 29... Qb6 {[%clk 0:00:52.3]} 30. Rbc1 {[%clk
0:01:18]} 30... Ba3 {[%clk 0:00:51.2]} 31. Rc3 {[%clk 0:01:16.8]} 31... Bd6
{[%clk 0:00:51.1]} 32. Rd1 {[%clk 0:01:11.5]} 32... h5 {[%clk 0:00:49.1]} 33. d4
{[%clk 0:01:07.1]} 33... Re8 {[%clk 0:00:48.9]} 34. dxe5 {[%clk 0:01:04.6]}
34... Bxe5 {[%clk 0:00:49]} 35. Rcd3 {[%clk 0:01:04.7]} 35... h4 {[%clk
0:00:48.4]} 36. Qxh4 {[%clk 0:01:01.4]} 1-0

[Event "*** Titled Tuesday Blitz"]
[Site "Chess.com"]
[Date "2020.04.07"]
[Round "3"]
[White "cukin84"]
[Black "KarstenHansch"]
[Result "1/2-1/2"]
[WhiteElo "2114"]
[BlackElo "2390"]
[TimeControl "180+1"]
[EndTime "13:28:17 PDT"]
[Termination "Game drawn by agreement"]

1. e4 {[%clk 0:03:00.9]} 1... c6 {[%clk 0:03:00]} 2. d4 {[%clk 0:03:00.1]} 2...
d5 {[%clk 0:03:00.9]} 3. exd5 {[%clk 0:02:59.4]} 3... cxd5 {[%clk 0:03:00.8]} 4.
Bd3 {[%clk 0:02:59.5]} 4... Nc6 {[%clk 0:03:00.9]} 5. c3 {[%clk 0:02:59]} 5...
Qc7 {[%clk 0:03:01.1]} 6. h3 {[%clk 0:02:56]} 6... e5 {[%clk 0:02:45.9]} 7. dxe5
{[%clk 0:02:55.2]} 7... Nxe5 {[%clk 0:02:45.8]} 8. Bc2 {[%clk 0:02:54.1]} 8...
Bd6 {[%clk 0:02:45]} 9. Nf3 {[%clk 0:02:51.3]} 9... Nf6 {[%clk 0:02:42.2]} 10.
Nxe5 {[%clk 0:02:50.2]} 10... Bxe5 {[%clk 0:02:43.1]} 11. Qe2 {[%clk 0:02:48.2]}
11... O-O {[%clk 0:02:42.4]} 12. O-O {[%clk 0:02:48]} 12... Re8 {[%clk
0:02:40.3]} 13. Qd3 {[%clk 0:02:45.1]} 13... b6 {[%clk 0:02:29.4]} 14. Bg5
{[%clk 0:02:43.4]} 14... g6 {[%clk 0:02:26.2]} 15. Nd2 {[%clk 0:02:40.7]} 15...
Bf5 {[%clk 0:02:19.9]} 16. Qf3 {[%clk 0:02:25.1]} 16... Bxc2 {[%clk 0:01:59.4]}
17. Bxf6 {[%clk 0:02:24.4]} 17... Be4 {[%clk 0:01:56.3]} 18. Nxe4 {[%clk
0:02:23.8]} 18... dxe4 {[%clk 0:01:53.6]} 19. Bxe5 {[%clk 0:02:24]} 19... Qxe5
{[%clk 0:01:53.6]} 20. Qe3 {[%clk 0:02:23.5]} 20... f5 {[%clk 0:01:50.2]} 21.
Rad1 {[%clk 0:02:20.2]} 21... f4 {[%clk 0:01:48.8]} 22. Qd4 {[%clk 0:02:18.5]}
22... e3 {[%clk 0:01:43.7]} 23. fxe3 {[%clk 0:02:15]} 23... fxe3 {[%clk
0:01:40.2]} 24. Qc4+ {[%clk 0:02:13.9]} 24... Kh8 {[%clk 0:01:39.4]} 25. Rf7
{[%clk 0:02:07.8]} 25... e2 {[%clk 0:01:31.1]} 26. Re1 {[%clk 0:02:07.3]} 26...
Rac8 {[%clk 0:01:25.3]} 27. Qh4 {[%clk 0:02:05.6]} 27... h5 {[%clk 0:01:15.7]}
28. Qf6+ {[%clk 0:01:53.5]} 28... Qxf6 {[%clk 0:01:07.3]} 29. Rxf6 {[%clk
0:01:54.4]} 29... Rcd8 {[%clk 0:00:57.9]} 30. Kf2 {[%clk 0:01:49.9]} 30... Kg7
{[%clk 0:00:51.2]} 31. Rc6 {[%clk 0:01:47]} 31... Rd2 {[%clk 0:00:50.5]} 32.
Rc7+ {[%clk 0:01:43]} 32... Kh6 {[%clk 0:00:49]} 33. Rxa7 {[%clk 0:01:41.5]}
33... Rxb2 {[%clk 0:00:49.1]} 34. a4 {[%clk 0:01:40.4]} 34... Rf8+ {[%clk
0:00:33.8]} 35. Kg1 {[%clk 0:01:38.9]} 35... Re8 {[%clk 0:00:34]} 36. Kf2 {[%clk
0:01:38.7]} 36... Rf8+ {[%clk 0:00:33.7]} 37. Kg1 {[%clk 0:01:38.9]} 37... Rc2
{[%clk 0:00:33]} 38. Re7 {[%clk 0:01:33.2]} 38... Rxc3 {[%clk 0:00:32]} 39.
R7xe2 {[%clk 0:01:32.4]} 39... Rf6 {[%clk 0:00:30.8]} 40. Rb2 {[%clk 0:01:31.4]}
40... Ra3 {[%clk 0:00:30.1]} 41. Reb1 {[%clk 0:01:31.2]} 41... Rxa4 {[%clk
0:00:29.7]} 42. Rxb6 {[%clk 0:01:31.2]} 42... Rxb6 {[%clk 0:00:30.6]} 1/2-1/2

[Event "*** Titled Tuesday Blitz"]
[Site "Chess.com"]
[Date "2020.04.07"]
[Round "3"]
[White "maxip32"]
[Black "Icewizard1"]
[Result "0-1"]
[WhiteElo "2486"]
[BlackElo "2872"]
[TimeControl "180+1"]
[EndTime "13:28:21 PDT"]
[Termination "Icewizard1 won on time"]

1. e4 {[%clk 0:03:00.9]} 1... c5 {[%clk 0:02:55.1]} 2. Nf3 {[%clk 0:02:59.2]}
2... d6 {[%clk 0:02:54.8]} 3. d4 {[%clk 0:02:58.5]} 3... cxd4 {[%clk 0:02:52.8]}
4. Nxd4 {[%clk 0:02:59.4]} 4... Nf6 {[%clk 0:02:53.5]} 5. Nc3 {[%clk 0:02:59.3]}
5... g6 {[%clk 0:02:50.3]} 6. Be3 {[%clk 0:02:57.8]} 6... Bg7 {[%clk 0:02:50.8]}
7. f3 {[%clk 0:02:57.2]} 7... O-O {[%clk 0:02:50.8]} 8. Qd2 {[%clk 0:02:57.7]}
8... Nc6 {[%clk 0:02:49.4]} 9. g4 {[%clk 0:02:58.1]} 9... Bd7 {[%clk 0:02:44.6]}
10. h4 {[%clk 0:02:56.8]} 10... Rc8 {[%clk 0:02:40.4]} 11. h5 {[%clk 0:02:55.5]}
11... Ne5 {[%clk 0:02:39.5]} 12. O-O-O {[%clk 0:02:53.8]} 12... Qa5 {[%clk
0:02:35.8]} 13. Nb3 {[%clk 0:02:30.1]} 13... Qc7 {[%clk 0:02:29.7]} 14. Be2
{[%clk 0:02:29.1]} 14... b5 {[%clk 0:02:26.6]} 15. hxg6 {[%clk 0:02:19.8]} 15...
fxg6 {[%clk 0:02:25.7]} 16. Bh6 {[%clk 0:02:06]} 16... b4 {[%clk 0:02:23.7]} 17.
Nd5 {[%clk 0:02:05]} 17... Nxd5 {[%clk 0:02:22.8]} 18. Qxd5+ {[%clk 0:02:03.1]}
18... Rf7 {[%clk 0:02:16]} 19. Rd2 {[%clk 0:01:32.4]} 19... a5 {[%clk
0:02:10.1]} 20. Bxg7 {[%clk 0:01:30.1]} 20... Kxg7 {[%clk 0:02:08.1]} 21. Kb1
{[%clk 0:01:23.6]} 21... a4 {[%clk 0:02:06.2]} 22. Nd4 {[%clk 0:01:17.7]} 22...
Qc5 {[%clk 0:02:06.6]} 23. Ne6+ {[%clk 0:01:05.2]} 23... Bxe6 {[%clk 0:02:03.2]}
24. Qxe6 {[%clk 0:01:06.1]} 24... Rcf8 {[%clk 0:01:59]} 25. g5 {[%clk
0:00:52.6]} 25... Qe3 {[%clk 0:01:56]} 26. Rhd1 {[%clk 0:00:43.7]} 26... Qxg5
{[%clk 0:01:53.7]} 27. Qh3 {[%clk 0:00:14.8]} 27... Qe3 {[%clk 0:01:47.6]} 28.
Qh4 {[%clk 0:00:07.9]} 28... a3 {[%clk 0:01:43.2]} 0-1

[Event "*** Titled Tuesday Blitz"]
[Site "Chess.com"]
[Date "2020.04.07"]
[Round "3"]
[White "AminMolaei"]
[Black "quesfr"]
[Result "1-0"]
[WhiteElo "2523"]
[BlackElo "2189"]
[TimeControl "180+1"]
[EndTime "13:28:23 PDT"]
[Termination "AminMolaei won by resignation"]

1. d4 {[%clk 0:03:00.9]} 1... d5 {[%clk 0:02:59.7]} 2. c4 {[%clk 0:03:00.5]}
2... e6 {[%clk 0:02:59.9]} 3. Nc3 {[%clk 0:02:59.9]} 3... Nf6 {[%clk 0:02:59.8]}
4. cxd5 {[%clk 0:03:00.2]} 4... exd5 {[%clk 0:03:00.7]} 5. Bg5 {[%clk
0:02:58.6]} 5... c6 {[%clk 0:02:59.4]} 6. Be3 {[%clk 0:02:58.8]} 6... Bd6 {[%clk
0:02:57]} 7. f3 {[%clk 0:02:55.5]} 7... Bf5 {[%clk 0:02:49]} 8. Bf2 {[%clk
0:02:53.7]} 8... O-O {[%clk 0:02:48.4]} 9. e3 {[%clk 0:02:54.1]} 9... Re8 {[%clk
0:02:47.3]} 10. Bd3 {[%clk 0:02:54.2]} 10... Qd7 {[%clk 0:02:38.6]} 11. Nge2
{[%clk 0:02:53.1]} 11... Na6 {[%clk 0:02:23]} 12. Bxa6 {[%clk 0:02:34]} 12...
bxa6 {[%clk 0:02:23.9]} 13. O-O {[%clk 0:02:33.8]} 13... Rab8 {[%clk 0:02:17.6]}
14. Na4 {[%clk 0:02:31.1]} 14... c5 {[%clk 0:01:57.2]} 15. dxc5 {[%clk
0:02:24.4]} 15... Be5 {[%clk 0:01:56.7]} 16. Nd4 {[%clk 0:02:22.2]} 16... Bg6
{[%clk 0:01:55.7]} 17. b3 {[%clk 0:02:19.1]} 17... Rec8 {[%clk 0:01:47.4]} 18.
Rc1 {[%clk 0:02:17.1]} 18... Qc7 {[%clk 0:01:35.8]} 19. h3 {[%clk 0:02:04]}
19... Nh5 {[%clk 0:01:15.6]} 20. f4 {[%clk 0:01:52.5]} 20... Bxd4 {[%clk
0:01:13.8]} 21. Qxd4 {[%clk 0:01:53.4]} 21... Be4 {[%clk 0:01:08.6]} 22. Bh4
{[%clk 0:01:45.2]} 22... a5 {[%clk 0:01:00.6]} 23. g4 {[%clk 0:01:38.4]} 23...
Rb4 {[%clk 0:01:00.2]} 24. Qe5 {[%clk 0:01:38.3]} 24... Qd7 {[%clk 0:00:48.7]}
25. Qxh5 {[%clk 0:01:30.5]} 25... Re8 {[%clk 0:00:32.4]} 26. c6 {[%clk
0:01:25.9]} 26... Qc7 {[%clk 0:00:29.8]} 27. Bg3 {[%clk 0:01:20.2]} 27... Bd3
{[%clk 0:00:18.9]} 28. Rfe1 {[%clk 0:01:17.8]} 28... d4 {[%clk 0:00:16.9]} 29.
exd4 {[%clk 0:01:15.3]} 29... Rxe1+ {[%clk 0:00:16.5]} 1-0

[Event "*** Titled Tuesday Blitz"]
[Site "Chess.com"]
[Date "2020.04.07"]
[Round "3"]
[White "reigningmvp"]
[Black "ehrenfeld"]
[Result "1-0"]
[WhiteElo "2259"]
[BlackElo "2429"]
[TimeControl "180+1"]
[EndTime "13:28:24 PDT"]
[Termination "reigningmvp won by resignation"]

1. e4 {[%clk 0:03:00.9]} 1... e5 {[%clk 0:02:59.4]} 2. Nf3 {[%clk 0:03:01.2]}
2... Nc6 {[%clk 0:02:59.4]} 3. Bc4 {[%clk 0:03:01.5]} 3... Nf6 {[%clk
0:02:58.7]} 4. d3 {[%clk 0:03:02]} 4... h6 {[%clk 0:02:58.7]} 5. c3 {[%clk
0:02:59.5]} 5... d6 {[%clk 0:02:58.1]} 6. Nbd2 {[%clk 0:02:59.4]} 6... g5 {[%clk
0:02:57.2]} 7. Bb3 {[%clk 0:02:58.9]} 7... Bg7 {[%clk 0:02:56.3]} 8. Nc4 {[%clk
0:02:58.9]} 8... O-O {[%clk 0:02:49.7]} 9. Ne3 {[%clk 0:02:53.8]} 9... g4 {[%clk
0:02:33.4]} 10. Nd2 {[%clk 0:02:47.3]} 10... Ne7 {[%clk 0:02:27.8]} 11. Ndf1
{[%clk 0:02:28.7]} 11... d5 {[%clk 0:02:26.2]} 12. Ng3 {[%clk 0:02:26.1]} 12...
dxe4 {[%clk 0:02:11.4]} 13. dxe4 {[%clk 0:02:24.8]} 13... Qxd1+ {[%clk
0:02:09.7]} 14. Bxd1 {[%clk 0:02:19.6]} 14... Be6 {[%clk 0:02:04.6]} 15. Ngf5
{[%clk 0:02:15.2]} 15... Bxf5 {[%clk 0:02:01.6]} 16. exf5 {[%clk 0:02:12.6]}
16... h5 {[%clk 0:02:01.2]} 17. h3 {[%clk 0:02:11.7]} 17... Rad8 {[%clk
0:01:19]} 18. hxg4 {[%clk 0:02:07.8]} 18... hxg4 {[%clk 0:01:19]} 19. Rh4 {[%clk
0:01:45.2]} 19... g3 {[%clk 0:01:15.4]} 20. fxg3 {[%clk 0:01:43.6]} 20... Rd7
{[%clk 0:00:58.7]} 21. Bf3 {[%clk 0:01:40.3]} 21... Rfd8 {[%clk 0:00:54]} 22. g4
{[%clk 0:01:36.2]} 22... e4 {[%clk 0:00:51.1]} 23. Be2 {[%clk 0:01:29.7]} 23...
Nfd5 {[%clk 0:00:49.8]} 24. Nxd5 {[%clk 0:01:26.4]} 24... Nxd5 {[%clk
0:00:39.7]} 25. g5 {[%clk 0:01:25.7]} 25... Nxc3 {[%clk 0:00:39.1]} 26. f6
{[%clk 0:01:19.3]} 26... Nxe2 {[%clk 0:00:38.3]} 27. Kxe2 {[%clk 0:01:16.1]}
27... Bf8 {[%clk 0:00:36.3]} 28. Be3 {[%clk 0:01:11.4]} 1-0

[Event "*** Titled Tuesday Blitz"]
[Site "Chess.com"]
[Date "2020.04.07"]
[Round "3"]
[White "Hadza_3"]
[Black "Jadeit90"]
[Result "1-0"]
[WhiteElo "2433"]
[BlackElo "2230"]
[TimeControl "180+1"]
[EndTime "13:28:27 PDT"]
[Termination "Hadza_3 won by resignation"]

1. e4 {[%clk 0:03:00.9]} 1... c5 {[%clk 0:02:58.8]} 2. Nc3 {[%clk 0:03:00]} 2...
g6 {[%clk 0:02:50.3]} 3. f4 {[%clk 0:02:59.4]} 3... Bg7 {[%clk 0:02:39.5]} 4.
Bc4 {[%clk 0:03:00.3]} 4... Nc6 {[%clk 0:02:26.5]} 5. Nf3 {[%clk 0:03:01.2]}
5... e6 {[%clk 0:02:26.9]} 6. O-O {[%clk 0:03:00.8]} 6... Nge7 {[%clk
0:02:27.1]} 7. Qe1 {[%clk 0:03:01.3]} 7... O-O {[%clk 0:02:25.8]} 8. d3 {[%clk
0:03:01.7]} 8... d5 {[%clk 0:02:26]} 9. Bb3 {[%clk 0:03:02.2]} 9... c4 {[%clk
0:02:25.6]} 10. dxc4 {[%clk 0:03:02]} 10... d4 {[%clk 0:02:25.9]} 11. Nd1 {[%clk
0:03:00.7]} 11... a5 {[%clk 0:02:18.5]} 12. a3 {[%clk 0:02:38.4]} 12... b6
{[%clk 0:02:16.7]} 13. Nf2 {[%clk 0:02:35.4]} 13... a4 {[%clk 0:02:11.1]} 14.
Ba2 {[%clk 0:02:34]} 14... Na5 {[%clk 0:02:10.9]} 15. b4 {[%clk 0:02:27.3]}
15... axb3 {[%clk 0:02:10.2]} 16. cxb3 {[%clk 0:02:28.2]} 16... Bb7 {[%clk
0:02:05]} 17. Nd3 {[%clk 0:02:26.8]} 17... Qc7 {[%clk 0:02:00.5]} 18. Bb2 {[%clk
0:02:21.3]} 18... Rfd8 {[%clk 0:01:58.5]} 19. Rc1 {[%clk 0:02:19.9]} 19... Qc6
{[%clk 0:01:54.4]} 20. Nd2 {[%clk 0:01:57.4]} 20... Qc7 {[%clk 0:01:48.6]} 21.
b4 {[%clk 0:01:49.4]} 21... Nac6 {[%clk 0:01:48.4]} 22. c5 {[%clk 0:01:49.9]}
22... bxc5 {[%clk 0:01:47.1]} 23. Nxc5 {[%clk 0:01:50.8]} 23... Rac8 {[%clk
0:01:43.6]} 24. Nc4 {[%clk 0:01:45.4]} 24... Ba8 {[%clk 0:01:42.5]} 25. Qd2
{[%clk 0:01:40.3]} 25... Qa7 {[%clk 0:01:42.3]} 26. Kh1 {[%clk 0:01:39.4]} 26...
h5 {[%clk 0:01:16.9]} 27. e5 {[%clk 0:01:30.5]} 27... Nd5 {[%clk 0:01:13.1]} 28.
Nd6 {[%clk 0:01:27.7]} 28... Rb8 {[%clk 0:01:03.4]} 29. Bxd5 {[%clk 0:01:26.9]}
29... exd5 {[%clk 0:01:02.3]} 30. Qd3 {[%clk 0:01:16.5]} 30... Nxb4 {[%clk
0:00:50.7]} 31. axb4 {[%clk 0:01:12.7]} 31... Rxb4 {[%clk 0:00:51.6]} 32. Bxd4
{[%clk 0:01:09.4]} 32... Qa2 {[%clk 0:00:48.7]} 33. Ra1 {[%clk 0:00:56.4]} 1-0